{"text_format":"1","workbook":"xlsx","n_sheets":2,"sheets":["Kalkylator","Beskrivning"],"not_rendered":{"charts":0,"images":4,"macros":1,"external_links":0,"defined_names":1,"comments":0,"pivot_tables":0},"unopened":[],"bounds":{"document_bytes":16777216,"sheet_cells":100000,"rows_first":2000,"rows_last":500,"rows_between":2000,"halvings":0,"cell_chars":16384,"cell_head_chars":4096},"cells_cut":0,"cells_raw":0,"read":"whole","date_system":"1900"}

{"sheet":"Kalkylator","index":0,"n_rows":117,"n_cols":21,"rows_kept":117,"cut":false,"hidden":false,"merged":[[1,14,1,16],[1,2,1,4],[1,6,1,9]]}
[null,null,"Belastningsdag:",null,null,null,"OBS! Du måste aktivera makro/aktivera redigering för att kalkylatorn ska fungera!"]
[null,null,null,null,null,null,"Beräkning av dos/dag ",null,null,null,null,null,null,null,"Beräkning av livsdos"]
[null,null,"Vårdtagar-\nhantering","Kompr.kraft [N] \nenligt Bilaga D",null,null,"Kompr.kraft [N]","Tid/\nhantering \n[s]","Antal/\ndag","Tid/dag [h]",null,null,"Dagsdos [Nh]",null,"Dagsdos [Nh]","Belastningsdag","Antal \ndagar/år","Antal år","Dos för perioden [106 Nh]",null,"Total Livsdos\n[106 Nh]"]
[null,1,null,{"$f":"IFERROR(VLOOKUP($C4,Kalkylator!$K$105:'Kalkylator'!$L$117,2,FALSE),0)","v":0},null,null,{"$f":"IF(OR(AND(D4>3199,$B$4=1),AND(D4>2499,$B$4=2)),D4,0)","v":0},{"$f":"IF(D4>0,7.5,0)","v":0},null,{"$f":"H4*I4/3600","v":0},{"$f":"G4*G4*J4","v":0},null,{"$f":"SQRT(SUM(K4:K101)/8)*8","v":0},null,null,null,null,null,{"$f":"O4*Q4*R4/1000000","v":0},null,{"$f":"(SUM(S4:S100))","v":0}]
[null,null,null,{"$f":"IFERROR(VLOOKUP($C5,Kalkylator!$K$105:'Kalkylator'!$L$117,2,FALSE),0)","v":0},null,null,{"$f":"IF(OR(AND(D5>3199,$B$4=1),AND(D5>2499,$B$4=2)),D5,0)","v":0},{"$f":"IF(D5>0,7.5,0)","v":0},null,{"$f":"H5*I5/3600","v":0},{"$f":"G5*G5*J5","v":0},null,null,null,null,null,null,null,0]
[null,null,null,{"$f":"IFERROR(VLOOKUP($C6,Kalkylator!$K$105:'Kalkylator'!$L$117,2,FALSE),0)","v":0},null,null,0,0,null,0,0,null,null,null,null,null,null,null,0,null,"Halvera belastningen om två personer hjälps åt"]
[null,null,null,{"$f":"IFERROR(VLOOKUP($C7,Kalkylator!$K$105:'Kalkylator'!$L$117,2,FALSE),0)","v":0},null,null,0,0,null,0,0,null,null,null,null,null,null,null,0,null,"Tid /hantering sätts automatiskt till 7,5 sekunder"]
[null,null,null,{"$f":"IFERROR(VLOOKUP($C8,Kalkylator!$K$105:'Kalkylator'!$L$117,2,FALSE),0)","v":0},null,null,{"$f":"IF(OR(AND(D8>3199,$B$4=1),AND(D8>2499,$B$4=2)),D8,0)","v":0},0,null,0,0,null,null,null,null,null,null,null,0,null,"Hanteringar:"]
[null,null,null,{"$f":"IFERROR(VLOOKUP($C9,Kalkylator!$K$105:'Kalkylator'!$L$117,2,FALSE),0)","v":0},null,null,0,0,null,0,0,null,null,null,null,null,null,null,0,null,"1 Resa vårdtagare från liggande till sittande i säng eller omvänt"]
[null,null,null,{"$f":"IFERROR(VLOOKUP($C10,Kalkylator!$K$105:'Kalkylator'!$L$117,2,FALSE),0)","v":0},null,null,0,0,null,0,0,null,null,null,null,null,null,null,0,null,"2 Resa vårdtagare från liggande i säng till sittande på sängkant eller omvänt"]
[null,null,null,{"$f":"IFERROR(VLOOKUP($C11,Kalkylator!$K$105:'Kalkylator'!$L$117,2,FALSE),0)","v":0},null,null,0,0,null,0,0,null,null,null,null,null,null,null,0,null,"3 Flytta vårdtagare mot sängens huvudända (personal vid sängens långsida)"]
[null,null,null,{"$f":"IFERROR(VLOOKUP($C12,Kalkylator!$K$105:'Kalkylator'!$L$117,2,FALSE),0)","v":0},null,null,0,0,null,0,0,null,null,null,null,null,null,null,0,null,"4 Flytta vårdtagare mot sängens huvudända (personal vid sängens huvudända)"]
[null,null,null,{"$f":"IFERROR(VLOOKUP($C13,Kalkylator!$K$105:'Kalkylator'!$L$117,2,FALSE),0)","v":0},null,null,0,0,null,0,0,null,null,null,null,null,null,null,0,null,"5 Flytta liggande vårdtagare sidledes i säng"]
[null,null,null,{"$f":"IFERROR(VLOOKUP($C14,Kalkylator!$K$105:'Kalkylator'!$L$117,2,FALSE),0)","v":0},null,null,0,0,null,0,0,null,null,null,null,null,null,null,0,null,"6 Lyfta/lägga ner liggande vårdtagares ben (personal vid sängens långsida)"]
[null,null,null,{"$f":"IFERROR(VLOOKUP($C15,Kalkylator!$K$105:'Kalkylator'!$L$117,2,FALSE),0)","v":0},null,null,0,0,null,0,{"$f":"G15*G15*J15","v":0},null,null,null,null,null,null,null,0,null,"(Obs! ger endast bidrag för kvinnor)"]
[null,null,null,{"$f":"IFERROR(VLOOKUP($C16,Kalkylator!$K$105:'Kalkylator'!$L$117,2,FALSE),0)","v":0},null,null,0,0,null,0,0,null,null,null,null,null,null,null,0,null,"7 Lyfta/lägga ner liggande vårdtagares ben (personal vid sängens fotända)"]
[null,null,null,{"$f":"IFERROR(VLOOKUP($C17,Kalkylator!$K$105:'Kalkylator'!$L$117,2,FALSE),0)","v":0},null,null,0,0,null,0,0,null,null,null,null,null,null,null,0,null,"(Obs! kommer inte ge något bidrag i beräkningen)"]
[null,null,null,{"$f":"IFERROR(VLOOKUP($C18,Kalkylator!$K$105:'Kalkylator'!$L$117,2,FALSE),0)","v":0},null,null,0,0,null,0,0,null,null,null,null,null,null,null,0,null,"8 Lyfta/lägga ner liggande vårdtagares båda ben (personal vid sängens långsida)"]
[null,null,null,{"$f":"IFERROR(VLOOKUP($C19,Kalkylator!$K$105:'Kalkylator'!$L$117,2,FALSE),0)","v":0},null,null,0,0,null,0,0,null,null,null,null,null,null,null,0,null,"9 Höja sängens huvudända med vårdtagare i sängen"]
[null,null,null,{"$f":"IFERROR(VLOOKUP($C20,Kalkylator!$K$105:'Kalkylator'!$L$117,2,FALSE),0)","v":0},null,null,0,0,null,0,0,null,null,null,null,null,null,null,0,null,"10 Placera eller ta bort ett bäcken under liggande vårdtagare"]
[null,null,null,{"$f":"IFERROR(VLOOKUP($C21,Kalkylator!$K$105:'Kalkylator'!$L$117,2,FALSE),0)","v":0},null,null,0,0,null,0,0,null,null,null,null,null,null,null,0,null,"11 Hjälpa vårdtagare från sittande på sängkanten till stol eller omvänt"]
[null,null,null,{"$f":"IFERROR(VLOOKUP($C22,Kalkylator!$K$105:'Kalkylator'!$L$117,2,FALSE),0)","v":0},null,null,0,0,null,0,0,null,null,null,null,null,null,null,0,null,"12 Hjälpa vårdtagare från sittande i stol till stående eller omvänt"]
[null,null,null,{"$f":"IFERROR(VLOOKUP($C23,Kalkylator!$K$105:'Kalkylator'!$L$117,2,FALSE),0)","v":0},null,null,0,0,null,0,0,null,null,null,null,null,null,null,0,null,"13 Hjälpa vårdtagare från liggande på golv till stående"]
[null,null,null,{"$f":"IFERROR(VLOOKUP($C24,Kalkylator!$K$105:'Kalkylator'!$L$117,2,FALSE),0)","v":0},null,null,0,0,null,0,0,null,null,null,null,null,null,null,0]
[null,null,null,{"$f":"IFERROR(VLOOKUP($C25,Kalkylator!$K$105:'Kalkylator'!$L$117,2,FALSE),0)","v":0},null,null,0,0,null,0,0,null,null,null,null,null,null,null,0]
[null,null,null,{"$f":"IFERROR(VLOOKUP($C26,Kalkylator!$K$105:'Kalkylator'!$L$117,2,FALSE),0)","v":0},null,null,0,0,null,0,0,null,null,null,null,null,null,null,0,null,"Version: 2024-11-12"]
[null,null,null,{"$f":"IFERROR(VLOOKUP($C27,Kalkylator!$K$105:'Kalkylator'!$L$117,2,FALSE),0)","v":0},null,null,0,0,null,0,0,null,null,null,null,null,null,null,0]
[null,null,null,{"$f":"IFERROR(VLOOKUP($C28,Kalkylator!$K$105:'Kalkylator'!$L$117,2,FALSE),0)","v":0},null,null,0,0,null,0,0,null,null,null,null,null,null,null,0]
[null,null,null,{"$f":"IFERROR(VLOOKUP($C29,Kalkylator!$K$105:'Kalkylator'!$L$117,2,FALSE),0)","v":0},null,null,0,0,null,0,0,null,null,null,null,null,null,null,0]
[null,null,null,{"$f":"IFERROR(VLOOKUP($C30,Kalkylator!$K$105:'Kalkylator'!$L$117,2,FALSE),0)","v":0},null,null,0,0,null,0,0,null,null,null,null,null,null,null,0]
[null,null,null,{"$f":"IFERROR(VLOOKUP($C31,Kalkylator!$K$105:'Kalkylator'!$L$117,2,FALSE),0)","v":0},null,null,0,0,null,0,0,null,null,null,null,null,null,null,0]
[null,null,null,{"$f":"IFERROR(VLOOKUP($C32,Kalkylator!$K$105:'Kalkylator'!$L$117,2,FALSE),0)","v":0},null,null,0,0,null,0,0,null,null,null,null,null,null,null,0]
[null,null,null,{"$f":"IFERROR(VLOOKUP($C33,Kalkylator!$K$105:'Kalkylator'!$L$117,2,FALSE),0)","v":0},null,null,0,0,null,0,0,null,null,null,null,null,null,null,0]
[null,null,null,{"$f":"IFERROR(VLOOKUP($C34,Kalkylator!$K$105:'Kalkylator'!$L$117,2,FALSE),0)","v":0},null,null,0,0,null,0,0,null,null,null,null,null,null,null,0]
[null,null,null,{"$f":"IFERROR(VLOOKUP($C35,Kalkylator!$K$105:'Kalkylator'!$L$117,2,FALSE),0)","v":0},null,null,0,0,null,0,0,null,null,null,null,null,null,null,0]
[null,null,null,{"$f":"IFERROR(VLOOKUP($C36,Kalkylator!$K$105:'Kalkylator'!$L$117,2,FALSE),0)","v":0},null,null,0,0,null,0,0,null,null,null,null,null,null,null,0]
[null,null,null,{"$f":"IFERROR(VLOOKUP($C37,Kalkylator!$K$105:'Kalkylator'!$L$117,2,FALSE),0)","v":0},null,null,0,0,null,0,0,null,null,null,null,null,null,null,0]
[null,null,null,{"$f":"IFERROR(VLOOKUP($C38,Kalkylator!$K$105:'Kalkylator'!$L$117,2,FALSE),0)","v":0},null,null,0,0,null,0,0,null,null,null,null,null,null,null,0]
[null,null,null,{"$f":"IFERROR(VLOOKUP($C39,Kalkylator!$K$105:'Kalkylator'!$L$117,2,FALSE),0)","v":0},null,null,0,0,null,0,0,null,null,null,null,null,null,null,0]
[null,null,null,{"$f":"IFERROR(VLOOKUP($C40,Kalkylator!$K$105:'Kalkylator'!$L$117,2,FALSE),0)","v":0},null,null,0,0,null,0,0,null,null,null,null,null,null,null,0]
[null,null,null,{"$f":"IFERROR(VLOOKUP($C41,Kalkylator!$K$105:'Kalkylator'!$L$117,2,FALSE),0)","v":0},null,null,0,0,null,0,0,null,null,null,null,null,null,null,0]
[null,null,null,{"$f":"IFERROR(VLOOKUP($C42,Kalkylator!$K$105:'Kalkylator'!$L$117,2,FALSE),0)","v":0},null,null,0,0,null,0,0,null,null,null,null,null,null,null,0]
[null,null,null,{"$f":"IFERROR(VLOOKUP($C43,Kalkylator!$K$105:'Kalkylator'!$L$117,2,FALSE),0)","v":0},null,null,0,0,null,0,0,null,null,null,null,null,null,null,0]
[null,null,null,{"$f":"IFERROR(VLOOKUP($C44,Kalkylator!$K$105:'Kalkylator'!$L$117,2,FALSE),0)","v":0},null,null,0,0,null,0,0,null,null,null,null,null,null,null,0]
[null,null,null,{"$f":"IFERROR(VLOOKUP($C45,Kalkylator!$K$105:'Kalkylator'!$L$117,2,FALSE),0)","v":0},null,null,0,0,null,0,0,null,null,null,null,null,null,null,0]
[null,null,null,{"$f":"IFERROR(VLOOKUP($C46,Kalkylator!$K$105:'Kalkylator'!$L$117,2,FALSE),0)","v":0},null,null,0,0,null,0,0,null,null,null,null,null,null,null,0]
[null,null,null,{"$f":"IFERROR(VLOOKUP($C47,Kalkylator!$K$105:'Kalkylator'!$L$117,2,FALSE),0)","v":0},null,null,0,0,null,0,0,null,null,null,null,null,null,null,0]
[null,null,null,{"$f":"IFERROR(VLOOKUP($C48,Kalkylator!$K$105:'Kalkylator'!$L$117,2,FALSE),0)","v":0},null,null,0,0,null,0,0,null,null,null,null,null,null,null,0]
[null,null,null,{"$f":"IFERROR(VLOOKUP($C49,Kalkylator!$K$105:'Kalkylator'!$L$117,2,FALSE),0)","v":0},null,null,0,0,null,0,0,null,null,null,null,null,null,null,0]
[null,null,null,{"$f":"IFERROR(VLOOKUP($C50,Kalkylator!$K$105:'Kalkylator'!$L$117,2,FALSE),0)","v":0},null,null,0,0,null,0,0,null,null,null,null,null,null,null,0]
[null,null,null,{"$f":"IFERROR(VLOOKUP($C51,Kalkylator!$K$105:'Kalkylator'!$L$117,2,FALSE),0)","v":0},null,null,0,0,null,0,0,null,null,null,null,null,null,null,0]
[null,null,null,{"$f":"IFERROR(VLOOKUP($C52,Kalkylator!$K$105:'Kalkylator'!$L$117,2,FALSE),0)","v":0},null,null,0,0,null,0,0,null,null,null,null,null,null,null,0]
[null,null,null,{"$f":"IFERROR(VLOOKUP($C53,Kalkylator!$K$105:'Kalkylator'!$L$117,2,FALSE),0)","v":0},null,null,0,0,null,0,0,null,null,null,null,null,null,null,0]
[null,null,null,{"$f":"IFERROR(VLOOKUP($C54,Kalkylator!$K$105:'Kalkylator'!$L$117,2,FALSE),0)","v":0},null,null,0,0,null,0,0,null,null,null,null,null,null,null,0]
[null,null,null,{"$f":"IFERROR(VLOOKUP($C55,Kalkylator!$K$105:'Kalkylator'!$L$117,2,FALSE),0)","v":0},null,null,0,0,null,0,0,null,null,null,null,null,null,null,0]
[null,null,null,{"$f":"IFERROR(VLOOKUP($C56,Kalkylator!$K$105:'Kalkylator'!$L$117,2,FALSE),0)","v":0},null,null,0,0,null,0,0,null,null,null,null,null,null,null,0]
[null,null,null,{"$f":"IFERROR(VLOOKUP($C57,Kalkylator!$K$105:'Kalkylator'!$L$117,2,FALSE),0)","v":0},null,null,0,0,null,0,0,null,null,null,null,null,null,null,0]
[null,null,null,{"$f":"IFERROR(VLOOKUP($C58,Kalkylator!$K$105:'Kalkylator'!$L$117,2,FALSE),0)","v":0},null,null,0,0,null,0,0,null,null,null,null,null,null,null,0]
[null,null,null,{"$f":"IFERROR(VLOOKUP($C59,Kalkylator!$K$105:'Kalkylator'!$L$117,2,FALSE),0)","v":0},null,null,0,0,null,0,0,null,null,null,null,null,null,null,0]
[null,null,null,{"$f":"IFERROR(VLOOKUP($C60,Kalkylator!$K$105:'Kalkylator'!$L$117,2,FALSE),0)","v":0},null,null,0,0,null,0,0,null,null,null,null,null,null,null,0]
[null,null,null,{"$f":"IFERROR(VLOOKUP($C61,Kalkylator!$K$105:'Kalkylator'!$L$117,2,FALSE),0)","v":0},null,null,0,0,null,0,0,null,null,null,null,null,null,null,0]
[null,null,null,{"$f":"IFERROR(VLOOKUP($C62,Kalkylator!$K$105:'Kalkylator'!$L$117,2,FALSE),0)","v":0},null,null,0,0,null,0,0,null,null,null,null,null,null,null,0]
[null,null,null,{"$f":"IFERROR(VLOOKUP($C63,Kalkylator!$K$105:'Kalkylator'!$L$117,2,FALSE),0)","v":0},null,null,0,0,null,0,0,null,null,null,null,null,null,null,0]
[null,null,null,{"$f":"IFERROR(VLOOKUP($C64,Kalkylator!$K$105:'Kalkylator'!$L$117,2,FALSE),0)","v":0},null,null,0,0,null,0,0,null,null,null,null,null,null,null,0]
[null,null,null,{"$f":"IFERROR(VLOOKUP($C65,Kalkylator!$K$105:'Kalkylator'!$L$117,2,FALSE),0)","v":0},null,null,0,0,null,0,0,null,null,null,null,null,null,null,0]
[null,null,null,{"$f":"IFERROR(VLOOKUP($C66,Kalkylator!$K$105:'Kalkylator'!$L$117,2,FALSE),0)","v":0},null,null,0,0,null,0,0,null,null,null,null,null,null,null,0]
[null,null,null,{"$f":"IFERROR(VLOOKUP($C67,Kalkylator!$K$105:'Kalkylator'!$L$117,2,FALSE),0)","v":0},null,null,0,0,null,0,0,null,null,null,null,null,null,null,0]
[null,null,null,{"$f":"IFERROR(VLOOKUP($C68,Kalkylator!$K$105:'Kalkylator'!$L$117,2,FALSE),0)","v":0},null,null,0,0,null,0,0,null,null,null,null,null,null,null,{"$f":"O68*Q68*R68/1000000","v":0}]
[null,null,null,{"$f":"IFERROR(VLOOKUP($C69,Kalkylator!$K$105:'Kalkylator'!$L$117,2,FALSE),0)","v":0},null,null,{"$f":"IF(OR(AND(D69>3199,$B$4=1),AND(D69>2499,$B$4=2)),D69,0)","v":0},{"$f":"IF(D69>0,7.5,0)","v":0},null,{"$f":"H69*I69/3600","v":0},0,null,null,null,null,null,null,null,0]
[null,null,null,{"$f":"IFERROR(VLOOKUP($C70,Kalkylator!$K$105:'Kalkylator'!$L$117,2,FALSE),0)","v":0},null,null,0,0,null,0,0,null,null,null,null,null,null,null,0]
[null,null,null,{"$f":"IFERROR(VLOOKUP($C71,Kalkylator!$K$105:'Kalkylator'!$L$117,2,FALSE),0)","v":0},null,null,0,0,null,0,0,null,null,null,null,null,null,null,0]
[null,null,null,{"$f":"IFERROR(VLOOKUP($C72,Kalkylator!$K$105:'Kalkylator'!$L$117,2,FALSE),0)","v":0},null,null,0,0,null,0,0,null,null,null,null,null,null,null,0]
[null,null,null,{"$f":"IFERROR(VLOOKUP($C73,Kalkylator!$K$105:'Kalkylator'!$L$117,2,FALSE),0)","v":0},null,null,0,0,null,0,0,null,null,null,null,null,null,null,0]
[null,null,null,{"$f":"IFERROR(VLOOKUP($C74,Kalkylator!$K$105:'Kalkylator'!$L$117,2,FALSE),0)","v":0},null,null,0,0,null,0,0,null,null,null,null,null,null,null,0]
[null,null,null,{"$f":"IFERROR(VLOOKUP($C75,Kalkylator!$K$105:'Kalkylator'!$L$117,2,FALSE),0)","v":0},null,null,0,0,null,0,0,null,null,null,null,null,null,null,0]
[null,null,null,{"$f":"IFERROR(VLOOKUP($C76,Kalkylator!$K$105:'Kalkylator'!$L$117,2,FALSE),0)","v":0},null,null,0,0,null,0,0,null,null,null,null,null,null,null,0]
[null,null,null,{"$f":"IFERROR(VLOOKUP($C77,Kalkylator!$K$105:'Kalkylator'!$L$117,2,FALSE),0)","v":0},null,null,0,0,null,0,0,null,null,null,null,null,null,null,0]
[null,null,null,{"$f":"IFERROR(VLOOKUP($C78,Kalkylator!$K$105:'Kalkylator'!$L$117,2,FALSE),0)","v":0},null,null,0,0,null,0,0,null,null,null,null,null,null,null,0]
[null,null,null,{"$f":"IFERROR(VLOOKUP($C79,Kalkylator!$K$105:'Kalkylator'!$L$117,2,FALSE),0)","v":0},null,null,0,0,null,0,0,null,null,null,null,null,null,null,0]
[null,null,null,{"$f":"IFERROR(VLOOKUP($C80,Kalkylator!$K$105:'Kalkylator'!$L$117,2,FALSE),0)","v":0},null,null,0,0,null,0,0,null,null,null,null,null,null,null,0]
[null,null,null,{"$f":"IFERROR(VLOOKUP($C81,Kalkylator!$K$105:'Kalkylator'!$L$117,2,FALSE),0)","v":0},null,null,0,0,null,0,0,null,null,null,null,null,null,null,0]
[null,null,null,{"$f":"IFERROR(VLOOKUP($C82,Kalkylator!$K$105:'Kalkylator'!$L$117,2,FALSE),0)","v":0},null,null,0,0,null,0,0,null,null,null,null,null,null,null,0]
[null,null,null,{"$f":"IFERROR(VLOOKUP($C83,Kalkylator!$K$105:'Kalkylator'!$L$117,2,FALSE),0)","v":0},null,null,0,0,null,0,0,null,null,null,null,null,null,null,0]
[null,null,null,{"$f":"IFERROR(VLOOKUP($C84,Kalkylator!$K$105:'Kalkylator'!$L$117,2,FALSE),0)","v":0},null,null,0,0,null,0,0,null,null,null,null,null,null,null,0]
[null,null,null,{"$f":"IFERROR(VLOOKUP($C85,Kalkylator!$K$105:'Kalkylator'!$L$117,2,FALSE),0)","v":0},null,null,0,0,null,0,0,null,null,null,null,null,null,null,0]
[null,null,null,{"$f":"IFERROR(VLOOKUP($C86,Kalkylator!$K$105:'Kalkylator'!$L$117,2,FALSE),0)","v":0},null,null,0,0,null,0,0,null,null,null,null,null,null,null,0]
[null,null,null,{"$f":"IFERROR(VLOOKUP($C87,Kalkylator!$K$105:'Kalkylator'!$L$117,2,FALSE),0)","v":0},null,null,0,0,null,0,0,null,null,null,null,null,null,null,0]
[null,null,null,{"$f":"IFERROR(VLOOKUP($C88,Kalkylator!$K$105:'Kalkylator'!$L$117,2,FALSE),0)","v":0},null,null,0,0,null,0,0,null,null,null,null,null,null,null,0]
[null,null,null,{"$f":"IFERROR(VLOOKUP($C89,Kalkylator!$K$105:'Kalkylator'!$L$117,2,FALSE),0)","v":0},null,null,0,0,null,0,0,null,null,null,null,null,null,null,0]
[null,null,null,{"$f":"IFERROR(VLOOKUP($C90,Kalkylator!$K$105:'Kalkylator'!$L$117,2,FALSE),0)","v":0},null,null,0,0,null,0,0,null,null,null,null,null,null,null,0]
[null,null,null,{"$f":"IFERROR(VLOOKUP($C91,Kalkylator!$K$105:'Kalkylator'!$L$117,2,FALSE),0)","v":0},null,null,0,0,null,0,0,null,null,null,null,null,null,null,0]
[null,null,null,{"$f":"IFERROR(VLOOKUP($C92,Kalkylator!$K$105:'Kalkylator'!$L$117,2,FALSE),0)","v":0},null,null,0,0,null,0,0,null,null,null,null,null,null,null,0]
[null,null,null,{"$f":"IFERROR(VLOOKUP($C93,Kalkylator!$K$105:'Kalkylator'!$L$117,2,FALSE),0)","v":0},null,null,0,0,null,0,0,null,null,null,null,null,null,null,0]
[null,null,null,{"$f":"IFERROR(VLOOKUP($C94,Kalkylator!$K$105:'Kalkylator'!$L$117,2,FALSE),0)","v":0},null,null,0,0,null,0,0,null,null,null,null,null,null,null,0]
[null,null,null,{"$f":"IFERROR(VLOOKUP($C95,Kalkylator!$K$105:'Kalkylator'!$L$117,2,FALSE),0)","v":0},null,null,0,0,null,0,0,null,null,null,null,null,null,null,0]
[null,null,null,{"$f":"IFERROR(VLOOKUP($C96,Kalkylator!$K$105:'Kalkylator'!$L$117,2,FALSE),0)","v":0},null,null,0,0,null,0,0,null,null,null,null,null,null,null,0]
[null,null,null,{"$f":"IFERROR(VLOOKUP($C97,Kalkylator!$K$105:'Kalkylator'!$L$117,2,FALSE),0)","v":0},null,null,0,0,null,0,0,null,null,null,null,null,null,null,0]
[null,null,null,{"$f":"IFERROR(VLOOKUP($C98,Kalkylator!$K$105:'Kalkylator'!$L$117,2,FALSE),0)","v":0},null,null,0,0,null,0,0,null,null,null,null,null,null,null,0]
[null,null,null,{"$f":"IFERROR(VLOOKUP($C99,Kalkylator!$K$105:'Kalkylator'!$L$117,2,FALSE),0)","v":0},null,null,0,0,null,0,0,null,null,null,null,null,null,null,0]
[null,null,null,{"$f":"IFERROR(VLOOKUP($C100,Kalkylator!$K$105:'Kalkylator'!$L$117,2,FALSE),0)","v":0},null,null,0,0,null,0,0,null,null,null,null,null,null,null,0]
[null,null,null,null,null,null,null,null,null,null,{"$f":"SUM(K4:K100)","v":0}]
[]
[]
[]
[null,null,null,null,null,null,null,null,null,null,1,4100]
[null,null,null,null,null,null,null,null,null,null,2,5100]
[null,null,null,null,null,null,null,null,null,null,3,7000]
[null,null,null,null,null,null,null,null,null,null,4,6000]
[null,null,null,null,null,null,null,null,null,null,5,5000]
[null,null,null,null,null,null,null,null,null,null,6,2900]
[null,null,null,null,null,null,null,null,null,null,7,1800]
[null,null,null,null,null,null,null,null,null,null,8,3700]
[null,null,null,null,null,null,null,null,null,null,9,4400]
[null,null,null,null,null,null,null,null,null,null,10,4600]
[null,null,null,null,null,null,null,null,null,null,11,5900]
[null,null,null,null,null,null,null,null,null,null,12,4900]
[null,null,null,null,null,null,null,null,null,null,13,4100]

{"sheet":"Beskrivning","index":1,"n_rows":14,"n_cols":2,"rows_kept":14,"cut":false,"hidden":false,"merged":[[2,1,2,11],[1,1,1,11],[13,1,13,11],[6,1,6,11],[12,1,12,11],[9,1,9,11],[7,1,7,11],[8,1,8,11],[5,1,5,11],[4,1,4,11],[10,1,10,11],[11,1,11,11],[3,1,3,11]]}
[]
[null,"Beskrivning för att använda kalkylatorn"]
[]
[null,"Endast vita fält ska fyllas i!"]
[null,"Ange kön. \nFyll i de nummer (1-13, Bilaga D) som motsvarar de vårdtagarhanteringar som utförts den återkommande faktiska belastningsdagen, på varsin rad i kolumnen Vårdtagarhantering. \nFyll i motsvarande kompressionskraft i kolumnen \"Kompr.kraft [N] enligt Bilaga B\" för varje vårdtagarhantering som utfördes den återkommande faktiska belastningsdagen."]
[]
[null,"Beräkning av dos/dag"]
[null,"Nu ska dosen för denna dag beräknas"]
[null,"Tiden sätts alltid till 7,5 sekunder i kolumnen Tid/hantering [s] \nFyll i hur många gånger varje vårdtagarhantering utfördes den återkommande faktiska belastningsdagen, i kolumnen Antal/dag"]
[null,"Har patienten haft arbetsdagar under sitt arbetsliv då han/hon arbetat på annat sätt?\nTryck på knappen \"Ny dagsdos\" för att rensa formuläret och fyll i nästa återkommande faktiska belastningsdag. Uppfylls inte minimigränsen visas inte dagsdosen i nästa steg.\n   "]
[null,"Beräkning av livsdos"]
[null,"För varje dagsdos ska nu fyllas i:"]
[null,"1. Under hur många dagar per år arbetade patienten på detta sätt i kolumnen Antal dagar/år."]
[null,"2. Under hur många år hade patienten sådana arbetsdagar i kolumnen Antal år\n3. Upprepa enligt ovan för alla tidsperioder."]